bitfinex-derivatives/quotes_BTCF0:USTF0_20250907
["timestamp","ask_amount","ask_price","bid_price","bid_amount"]
[1757260050247,1.33341245,111350.0,111340.0,0.31651843]
[1757260050848,1.33341245,111350.0,111340.0,0.4775835]
[1757260051845,1.02341245,111350.0,111340.0,0.4775835]
[1757260052048,1.01341245,111350.0,111340.0,0.4775835]
[1757260059255,1.01341245,111350.0,111340.0,0.2275835]
[1757260061152,0.81568,111350.0,111340.0,0.2275835]
[1757260061354,1.01341245,111350.0,111340.0,0.2275835]
[1757260061556,0.81568,111350.0,111340.0,0.2275835]
[1757260061951,1.01341245,111350.0,111340.0,0.2275835]
[1757260062957,1.01341245,111350.0,111340.0,0.06651843]
[1757260064955,0.81568,111350.0,111340.0,0.06651843]
[1757260065155,1.01341245,111350.0,111340.0,0.06651843]
[1757260067660,0.81568,111350.0,111340.0,0.06651843]
[1757260067853,1.01341245,111350.0,111340.0,0.06651843]
[1757260068557,1.01341245,111350.0,111340.0,0.2275835]
[1757260071359,0.81568,111350.0,111340.0,0.2275835]
[1757260071560,1.01341245,111350.0,111340.0,0.2275835]
[1757260072658,0.81568,111350.0,111340.0,0.2275835]
[1757260072860,1.01341245,111350.0,111340.0,0.2275835]
[1757260076459,0.19773245,111350.0,111340.0,0.2275835]
[1757260076663,1.01269245,111350.0,111340.0,0.2275835]
[1757260076853,0.19773245,111350.0,111340.0,0.2275835]
[1757260077060,1.01261245,111350.0,111340.0,0.2275835]
[1757260079766,1.01261245,111350.0,111340.0,0.06651843]
[1757260084368,1.01261245,111350.0,111340.0,0.22778088]
[1757260089268,1.01261245,111350.0,111340.0,0.06651843]
[1757260098377,1.21030432,111350.0,111340.0,0.06651843]
[1757260100878,1.21030432,111350.0,111340.0,0.22778368]
[1757260101172,1.21030432,111350.0,111340.0,0.18693525]
[1757260101376,1.80030432,111350.0,111340.0,0.17375525]
[1757260101577,1.80030432,111350.0,111340.0,0.28665112]
[1757260101774,1.80030432,111350.0,111340.0,0.12538587]
[1757260103878,1.80030432,111350.0,111340.0,0.13899587]
[1757260108682,1.80030432,111350.0,111340.0,0.0261]
[1757260108978,1.79946432,111350.0,111340.0,0.0261]
[1757260110279,1.79946432,111350.0,111340.0,0.13899587]
[1757260111382,1.79946432,111350.0,111340.0,0.30026112]
[1757260111570,1.79946432,111350.0,111340.0,0.18736525]
[1757260112181,1.79946432,111350.0,111340.0,0.0261]
[1757260113482,0.98542432,111350.0,111340.0,0.0261]
[1757260113685,0.76542432,111350.0,111340.0,0.04771]
[1757260113883,1.57918432,111350.0,111340.0,0.04771]
[1757260114374,1.79918432,111350.0,111340.0,0.04771]
[1757260115286,0.53771216,111350.0,111340.0,0.04771]
[1757260115488,1.10167216,111350.0,111340.0,0.04771]
[1757260116080,1.10167216,111350.0,111340.0,0.20897525]
[1757260117089,0.28771216,111350.0,111340.0,0.20897525]
[1757260117286,1.10167216,111350.0,111340.0,0.20897525]
[1757260122196,1.10147216,111350.0,111340.0,0.20897525]
[1757260125697,0.28771216,111350.0,111340.0,0.20897525]
[1757260125899,0.28771216,111350.0,111340.0,0.40668741]
[1757260125900,1.06047216,111350.0,111340.0,0.40668741]
[1757260126600,1.06047216,111350.0,111340.0,0.20897525]
[1757260133605,1.25818432,111350.0,111340.0,0.20897525]
[1757260134105,1.43818432,111350.0,111340.0,0.20897525]
[1757260136604,1.43818432,111350.0,111340.0,0.17375525]
[1757260136808,1.88589648,111350.0,111340.0,0.28661205]
[1757260137009,1.68818432,111350.0,111340.0,0.1253468]
[1757260137210,1.43818432,111350.0,111340.0,0.01249]
[1757260137812,1.43818432,111350.0,111340.0,0.12534746]
[1757260140207,0.66542432,111350.0,111340.0,0.01249]
[1757260140507,1.47918432,111350.0,111340.0,0.01249]
[1757260143907,1.47926432,111350.0,111340.0,0.0477]
[1757260144113,1.08384,111350.0,111340.0,0.0477]
[1757260144307,1.47926432,111350.0,111340.0,0.16055746]
[1757260144810,1.47926432,111350.0,111340.0,0.01249]
[1757260145210,1.47926432,111350.0,111340.0,0.12534746]
[1757260147513,1.47926432,111350.0,111340.0,0.01249]
[1757260150719,1.47926432,111350.0,111340.0,0.12534746]
[1757260151119,1.47926432,111350.0,111340.0,0.01249]
[1757260153320,1.47926432,111350.0,111340.0,0.12534746]
[1757260158327,1.47986432,111350.0,111340.0,0.12534746]
[1757260159622,1.47986432,111350.0,111340.0,0.13835746]
[1757260159827,0.66542432,111350.0,111340.0,0.16055746]
[1757260160028,1.47970432,111350.0,111340.0,0.16055746]
[1757260160329,1.2820164,111350.0,111340.0,0.16055746]
[1757260163831,0.4677364,111350.0,111340.0,0.16055746]
[1757260164225,1.2822564,111350.0,111340.0,0.16055746]
[1757260164433,1.2822164,111350.0,111340.0,0.16055746]
[1757260164930,1.2822164,111350.0,111340.0,0.0477]
[1757260167433,1.2822164,111350.0,111340.0,0.16061238]
[1757260169235,0.4677364,111350.0,111340.0,0.16061238]
[1757260169534,1.2819764,111350.0,111340.0,0.16061238]
[1757260169934,1.2819764,111350.0,111340.0,0.0477]
[1757260173236,1.2819764,111350.0,111340.0,0.16060104]
[1757260174836,1.2819764,111350.0,111340.0,0.0477]
[1757260177338,1.2819764,111350.0,111340.0,0.16059753]
[1757260180643,1.2819764,111350.0,111340.0,0.0477]
[1757260180940,1.2819764,111350.0,111340.0,0.13839821]
[1757260181735,1.2819764,111350.0,111340.0,0.12538821]
[1757260183142,1.2819764,111350.0,111340.0,0.01249]
[1757260192350,1.2819764,111350.0,111340.0,0.12541987]
[1757260197854,1.7297128,111350.0,111320.0,0.19636525]
[1757260198054,1.7297128,111350.0,111320.0,0.17391525]
[1757260198055,0.3954728,111330.0,111320.0,0.17391525]
[1757260198250,0.7554728,111330.0,111320.0,0.17391525]
[1757260198961,0.7554728,111330.0,111320.0,0.17891525]
[1757260199661,0.7554728,111330.0,111320.0,0.18591525]
[1757260199962,0.7554728,111330.0,111320.0,0.18791525]
[1757260200965,0.7554728,111330.0,111320.0,0.21036525]
[1757260201160,1.5693528,111330.0,111320.0,0.21036525]
[1757260201361,1.6408879,111330.0,111320.0,0.21036525]
[1757260202356,0.8270079,111330.0,111320.0,0.21036525]
[1757260202557,1.6408079,111330.0,111320.0,0.21036525]
[1757260202968,1.6408079,111330.0,111320.0,0.0491]
[1757260203573,1.65005781,111330.0,111320.0,0.0491]
[1757260203870,1.65005781,111330.0,111320.0,0.21036525]
[1757260206969,0.83625781,111330.0,111320.0,0.21036525]
[1757260207169,1.65029781,111330.0,111320.0,0.21036525]
[1757260207368,0.83625781,111330.0,111320.0,0.21036525]
[1757260207669,1.65029781,111330.0,111320.0,0.21036525]
[1757260209572,1.65029781,111330.0,111320.0,0.0491]
[1757260212875,1.65013781,111330.0,111320.0,0.0491]
[1757260214778,0.83725781,111330.0,111320.0,0.0421]
[1757260214972,1.65109781,111330.0,111320.0,0.0421]
[1757260216483,1.65109781,111330.0,111320.0,0.0351]
[1757260222386,0.83744015,111330.0,111320.0,0.0351]
[1757260222580,1.65108015,111330.0,111320.0,0.0351]
[1757260222775,0.83744015,111330.0,111320.0,0.0351]
[1757260222980,1.65108015,111330.0,111320.0,0.0351]
[1757260225491,1.65100015,111330.0,111320.0,0.0351]
[1757260228091,1.65100015,111330.0,111320.0,0.19636525]
[1757260228993,1.65100015,111330.0,111320.0,0.0351]
[1757260232092,1.65100015,111330.0,111320.0,0.19636525]
[1757260235594,1.65100015,111330.0,111320.0,0.17391525]
[1757260240599,1.65100015,111330.0,111320.0,0.19620525]
[1757260260525,1.25534501,111330.0,111320.0,0.19620525]
[1757260260720,1.65100015,111330.0,111320.0,0.19620525]
[1757260262625,0.63961258,111330.0,111320.0,0.03494]
[1757260262927,1.42301258,111330.0,111320.0,0.03494]
[1757260263623,1.62084015,111330.0,111320.0,0.03494]
[1757260264329,1.44084015,111330.0,111320.0,0.03494]
[1757260264626,1.61084015,111330.0,111320.0,0.03494]
[1757260268632,1.37084015,111330.0,111320.0,0.03494]
[1757260269231,1.37084015,111330.0,111320.0,0.19620525]
[1757260282342,1.37076721,111330.0,111320.0,0.19620525]
[1757260283141,1.17297611,111330.0,111320.0,0.19620525]
[1757260283842,1.37076721,111330.0,111320.0,0.19620525]
[1757260284447,1.17297611,111330.0,111320.0,0.19620525]
[1757260284744,0.35957611,111330.0,111320.0,0.19620525]
[1757260284944,1.02117611,111330.0,111320.0,0.19620525]
[1757260298551,1.21896721,111330.0,111320.0,0.19620525]
[1757260303557,1.02117611,111330.0,111320.0,0.19620525]
[1757260304461,0.35957611,111330.0,111320.0,0.19620525]
[1757260304761,1.17281611,111330.0,111320.0,0.19620525]
[1757260305953,1.17281611,111330.0,111320.0,0.03494]
[1757260306960,0.35957611,111330.0,111320.0,0.03494]
[1757260307161,1.00949611,111330.0,111320.0,0.03494]
[1757260307969,0.35957611,111330.0,111320.0,0.03494]
[1757260308264,1.17277611,111330.0,111320.0,0.03494]
[1757260320768,1.32277611,111330.0,111320.0,0.03494]
[1757260322166,1.52056721,111330.0,111320.0,0.03494]
[1757260323768,1.52056721,111330.0,111320.0,0.19620525]
[1757260325272,1.52056721,111330.0,111320.0,0.03494]
[1757260326873,0.70736721,111330.0,111320.0,0.03494]
[1757260327173,1.52048721,111330.0,111320.0,0.19620525]
[1757260329873,1.12490501,111330.0,111320.0,0.19620525]
[1757260330076,1.52048721,111330.0,111320.0,0.19620525]
[1757260331074,1.52048721,111330.0,111320.0,0.03494]
[1757260332575,0.70736721,111330.0,111320.0,0.03494]
[1757260332774,1.52044721,111330.0,111320.0,0.03494]
[1757260335276,1.52044721,111330.0,111320.0,0.19620525]
[1757260338379,1.52044721,111330.0,111320.0,0.17391525]
[1757260340280,1.52044721,111330.0,111320.0,0.19663525]
[1757260344283,1.52048223,111330.0,111320.0,0.19663525]
[1757260357691,1.52048223,111330.0,111320.0,0.03537]
[1757260367999,1.52048223,111330.0,111320.0,0.19663525]
[1757260377714,1.52048223,111330.0,111320.0,0.03537]
[1757260384911,1.52048223,111330.0,111320.0,0.19663525]
[1757260385820,1.52048223,111330.0,111320.0,0.17391525]
[1757260386018,1.52048223,111330.0,111320.0,0.19499525]
[1757260387421,1.12486501,111330.0,111320.0,0.19499525]
[1757260387622,1.52048223,111330.0,111320.0,0.19499525]
[1757260393025,1.52048223,111330.0,111320.0,0.03373]
[1757260394729,1.52048223,111330.0,111320.0,0.19499525]
[1757260395328,1.52048223,111330.0,111320.0,0.16126525]
[1757260395529,1.52048223,111330.0,111310.0,0.17391525]
[1757260395823,1.52048223,111330.0,111310.0,0.19499525]
[1757260395824,0.59342583,111320.0,111310.0,0.19499525]
[1757260396219,0.81644,111320.0,111310.0,0.19499525]
[1757260396417,1.21205722,111320.0,111310.0,0.19499525]
[1757260397228,0.39561722,111320.0,111310.0,0.19499525]
[1757260397430,1.21205722,111320.0,111310.0,0.19499525]
[1757260397828,1.21205722,111320.0,111310.0,0.19599525]
[1757260398634,0.39561722,111320.0,111310.0,0.19599525]
[1757260398929,1.05089722,111320.0,111310.0,0.19599525]
[1757260399335,0.39561722,111320.0,111310.0,0.19599525]
[1757260399525,1.21209722,111320.0,111310.0,0.19599525]
[1757260401337,0.39561722,111320.0,111310.0,0.19599525]
[1757260402731,0.39561722,111320.0,111310.0,0.03473]
[1757260403531,0.39561722,111320.0,111310.0,0.19599525]
[1757260404333,0.19781297,111320.0,111310.0,0.03473]
[1757260405137,0.19781297,111320.0,111310.0,0.19599525]
[1757260405937,0.19781297,111320.0,111310.0,0.03473]
[1757260414843,0.19781297,111320.0,111310.0,0.19599525]
[1757260423653,0.19781297,111320.0,111310.0,0.03473]
[1757260432160,0.19781297,111320.0,111310.0,0.19633522]
[1757260436167,0.19781297,111320.0,111310.0,0.03473]
[1757260442770,0.19781297,111320.0,111310.0,0.19633522]
[1757260446073,0.19781297,111320.0,111310.0,0.03473]
[1757260449374,1.05541798,111330.0,111310.0,0.03473]
[1757260449675,0.19781297,111320.0,111310.0,0.03473]
[1757260451473,0.19781297,111320.0,111310.0,0.03373]
[1757260452382,1.09617798,111330.0,111320.0,0.03458]
[1757260452574,1.43607798,111330.0,111320.0,0.19617419]
[1757260452879,1.43595798,111330.0,111320.0,0.19617419]
[1757260453280,0.61859798,111330.0,111320.0,0.19617419]
[1757260453580,1.63377095,111330.0,111320.0,0.19617419]
[1757260454980,1.63377095,111330.0,111320.0,0.03458]
[1757260455185,1.63477095,111330.0,111320.0,0.03458]
[1757260456685,0.81741095,111330.0,111320.0,0.03458]
[1757260456886,1.63465095,111330.0,111320.0,0.03458]
[1757260458986,1.63465095,111330.0,111320.0,0.19617419]
[1757260462689,1.23902501,111330.0,111320.0,0.19617419]
[1757260462888,1.63465095,111330.0,111320.0,0.19617419]
[1757260466293,1.63464707,111330.0,111320.0,0.19617419]
[1757260475000,1.63464707,111330.0,111320.0,0.03458]
[1757260482609,1.63464707,111330.0,111320.0,0.14771803]
[1757260485109,1.63464707,111330.0,111320.0,0.03458]
[1757260486210,1.63464707,111330.0,111320.0,0.14771803]
[1757260489414,1.63464707,111330.0,111320.0,0.03458]
[1757260491418,1.63464707,111330.0,111320.0,0.14771803]
[1757260494619,1.63464707,111330.0,111320.0,0.03458]
[1757260499926,1.63464707,111330.0,111320.0,0.19617419]
[1757260507132,1.63464707,111330.0,111320.0,0.03458]
[1757260508536,1.23902501,111330.0,111320.0,0.03458]
[1757260508731,1.63464707,111330.0,111320.0,0.03458]
[1757260510139,1.23902501,111330.0,111320.0,0.03458]
[1757260510334,1.63464707,111330.0,111320.0,0.03458]
[1757260516842,1.63464707,111330.0,111320.0,0.14766516]
[1757260517038,1.63464707,111330.0,111320.0,0.16074516]
[1757260517238,1.63464707,111330.0,111320.0,0.04766]
[1757260517736,1.63464707,111330.0,111320.0,0.20925419]
[1757260518637,1.63464707,111330.0,111320.0,0.04766]
[1757260521645,1.63464707,111330.0,111320.0,0.16074678]
[1757260522546,1.63464707,111330.0,111320.0,0.14766678]
[1757260523647,1.63464707,111330.0,111320.0,0.03458]
[1757260527550,1.23902501,111330.0,111320.0,0.03458]
[1757260527750,1.63464707,111330.0,111320.0,0.03458]
[1757260528344,1.63466019,111330.0,111320.0,0.03458]
[1757260530350,1.63466019,111330.0,111320.0,0.01298]
[1757260530559,1.63466019,111330.0,111320.0,0.17457419]
[1757260534547,1.63466019,111330.0,111320.0,0.01298]
[1757260536453,0.81742019,111330.0,111320.0,0.01298]
[1757260536653,1.63190019,111330.0,111320.0,0.01298]
[1757260540954,1.63178019,111330.0,111320.0,0.12606024]
[1757260541659,0.81742019,111330.0,111320.0,0.12606024]
[1757260541958,1.63182019,111330.0,111320.0,0.12606024]
[1757260547150,1.63182019,111330.0,111320.0,0.01298]
[1757260547861,1.63182019,111330.0,111320.0,0.12605567]
[1757260549362,1.63182019,111330.0,111320.0,0.01298]
[1757260557668,1.63182019,111330.0,111320.0,0.17457419]
[1757260560172,1.63182019,111330.0,111320.0,0.01298]
[1757260562476,1.63182019,111330.0,111310.0,0.2149329]
[1757260562673,0.19781759,111320.0,111310.0,0.2149329]
[1757260563875,0.19781759,111320.0,111310.0,0.2159329]
[1757260564275,0.19781759,111320.0,111310.0,0.2169329]
[1757260569974,0.19781759,111320.0,111310.0,0.05533871]
[1757260572880,0.19781759,111320.0,111310.0,0.21688679]
[1757260573582,0.19781759,111320.0,111310.0,0.05533871]
[1757260575582,0.19781759,111320.0,111310.0,0.21688679]
[1757260582692,0.19781759,111320.0,111310.0,0.05533871]
[1757260583089,0.08088501,111330.0,111320.0,0.01292]
[1757260583288,1.29042019,111330.0,111320.0,0.03581]
[1757260584388,1.66142019,111330.0,111320.0,0.03581]
[1757260585595,1.66142019,111330.0,111320.0,0.03681]
[1757260587792,1.66142019,111330.0,111320.0,0.01392]
[1757260587998,1.66142019,111330.0,111320.0,0.001]
[1757260588296,1.66142961,111330.0,111320.0,0.001]
[1757260588497,1.66142961,111330.0,111320.0,0.01392]
[1757260589796,1.66142961,111330.0,111320.0,0.1270043]
[1757260590398,1.66142961,111330.0,111320.0,0.175469]
[1757260594303,1.66142961,111330.0,111320.0,0.01392]
[1757260598707,1.26578501,111330.0,111320.0,0.03565]
[1757260598902,1.66142961,111330.0,111320.0,0.03565]
[1757260599101,1.66142961,111330.0,111320.0,0.01392]
[1757260604805,1.66142961,111330.0,111320.0,0.175469]
[1757260609712,1.66142961,111330.0,111320.0,0.01392]
[1757260612215,1.66142961,111330.0,111320.0,0.03565]
[1757260615414,1.66142961,111330.0,111320.0,0.01392]
[1757260619320,1.66142961,111330.0,111320.0,0.175469]
[1757260624124,1.66142961,111330.0,111320.0,0.01392]
[1757260630732,1.66142961,111330.0,111320.0,0.175469]
[1757260632332,1.66142961,111330.0,111320.0,0.198599]
[1757260633135,1.66142961,111330.0,111320.0,0.03705]
[1757260637137,1.66142961,111330.0,111320.0,0.21165628]
[1757260640637,1.66142961,111330.0,111320.0,0.198599]
[1757260640836,1.66142961,111330.0,111320.0,0.21165625]
[1757260646651,1.66142961,111330.0,111320.0,0.18852625]
[1757260647645,1.66142961,111330.0,111320.0,0.02697725]
[1757260650350,1.66143175,111330.0,111320.0,0.02697725]
[1757260652150,1.66143175,111330.0,111320.0,0.01392]
[1757260653252,1.66143175,111330.0,111320.0,0.001]
[1757260656650,1.66143175,111330.0,111320.0,0.162549]
[1757260658658,0.84743175,111330.0,111320.0,0.162549]
[1757260659152,1.66099175,111330.0,111320.0,0.162549]
[1757260659658,1.66099175,111330.0,111320.0,0.001]
[1757260671367,1.66099175,111330.0,111320.0,0.11408]
[1757260671762,1.66091175,111330.0,111320.0,0.11408]
[1757260672564,1.66091175,111330.0,111320.0,0.12778]
[1757260673370,0.84743175,111330.0,111320.0,0.12778]
[1757260673671,1.66091175,111330.0,111320.0,0.12778]
[1757260673862,0.84743175,111330.0,111320.0,0.15003]
[1757260674266,1.66091175,111330.0,111320.0,0.15003]
[1757260674468,1.66091175,111330.0,111320.0,0.03695]
[1757260676072,1.66091175,111330.0,111320.0,0.15003]
[1757260676570,1.66091175,111330.0,111320.0,0.03695]
[1757260677171,0.84743175,111330.0,111320.0,0.03695]
[1757260677571,1.66087175,111330.0,111320.0,0.03695]
[1757260678369,0.64960838,111330.0,111320.0,0.03695]
[1757260678575,0.371,111330.0,111320.0,0.57459797]
[1757260678872,0.181,111330.0,111320.0,0.57459797]
[1757260679169,0.181,111330.0,111320.0,0.3767746]
[1757260680376,0.001,111330.0,111320.0,0.73596802]
[1757260680671,0.001,111330.0,111320.0,0.53814465]
[1757260681065,0.001,111330.0,111320.0,0.3767746]
[1757260681972,0.001,111330.0,111320.0,0.53802337]
[1757260683468,0.001,111330.0,111320.0,0.85584674]
[1757260683775,0.001,111330.0,111320.0,0.69459797]
[1757260684273,0.001,111330.0,111320.0,0.65787095]
[1757260685170,0.001,111330.0,111320.0,0.4967746]
[1757260689473,0.001,111330.0,111320.0,0.65774271]
[1757260694076,0.19882337,111330.0,111320.0,0.58791811]
[1757260697984,0.19882337,111330.0,111320.0,0.67774271]
[1757260698284,0.19882337,111330.0,111320.0,0.5167746]
[1757260698680,0.19882337,111330.0,111320.0,0.42695]
[1757260698884,0.19882337,111330.0,111320.0,1.3299747]
[1757260699888,0.19882337,111330.0,111320.0,1.24015]
[1757260702282,0.001,111330.0,111320.0,1.24015]
[1757260702482,0.001,111330.0,111320.0,1.43797337]
[1757260703488,0.001,111330.0,111320.0,1.52779807]
[1757260703684,0.001,111330.0,111320.0,1.43797337]
[1757260704286,0.001,111330.0,111320.0,1.64773052]
[1757260704586,0.001,111330.0,111320.0,1.73755522]
[1757260704882,0.001,111330.0,111320.0,0.63670715]
[1757260705090,0.001,111330.0,111320.0,1.44982715]
[1757260705487,0.19882337,111330.0,111320.0,1.24007]
[1757260705787,0.19882337,111330.0,111320.0,0.17695]
[1757260705986,0.19882337,111330.0,111320.0,1.22007]
[1757260706182,0.19882337,111330.0,111320.0,1.18789337]
[1757260706788,0.001,111330.0,111320.0,0.99007]
[1757260707891,0.001,111330.0,111320.0,1.19982715]
[1757260711494,0.19882337,111330.0,111320.0,1.19982715]
[1757260712293,0.19873817,111330.0,111320.0,1.39756532]
[1757260713292,0.001,111330.0,111320.0,1.39756532]
[1757260713492,0.19873817,111330.0,111320.0,1.39756532]
[1757260716096,0.19873817,111330.0,111320.0,1.56756532]
[1757260719697,0.001,111330.0,111320.0,1.56756532]
[1757260719898,0.19873817,111330.0,111320.0,1.56756532]
[1757260726202,0.19873817,111330.0,111320.0,1.76530349]
[1757260726605,0.19873817,111330.0,111320.0,1.56756532]
[1757260728908,0.19873817,111330.0,111320.0,1.65739002]
[1757260729907,0.19873817,111330.0,111320.0,1.56756532]
[1757260731613,0.001,111330.0,111320.0,1.76530349]
[1757260732007,0.19797301,111340.0,111320.0,1.76530349]
[1757260732311,0.36797301,111340.0,111330.0,0.23488817]
[1757260732502,0.36787301,111340.0,111330.0,0.17715]
[1757260732901,0.0001,111350.0,111340.0,0.0898085]
[1757260733102,0.17,111350.0,111340.0,1.18982715]
[1757260733307,0.36773817,111350.0,111340.0,1.61756532]
[1757260733512,0.36773817,111350.0,111340.0,1.70737382]
[1757260733717,0.36773817,111350.0,111340.0,1.50963565]
[1757260734014,0.19783817,111360.0,111340.0,1.66511199]
[1757260734320,0.55783817,111360.0,111350.0,0.39612661]
[1757260734510,0.55773817,111360.0,111350.0,0.55398989]
[1757260735011,0.75547634,111360.0,111350.0,0.35625172]
[1757260735208,0.75547634,111360.0,111350.0,0.21625172]
[1757260735712,0.55773817,111360.0,111350.0,0.21625172]
[1757260737018,0.55773817,111360.0,111350.0,0.21725172]
[1757260737317,0.75547634,111360.0,111350.0,0.21725172]
[1757260739218,0.55773817,111360.0,111350.0,0.21725172]
[1757260739718,0.55773817,111360.0,111350.0,0.05601328]
[1757260740109,0.55773817,111360.0,111350.0,0.25375145]
[1757260740720,0.55773817,111360.0,111350.0,0.25475145]
[1757260741520,0.55773817,111360.0,111350.0,0.41598989]
[1757260743321,0.55773817,111360.0,111350.0,0.21825172]
[1757260744324,0.36,111360.0,111350.0,0.54598989]
[1757260744521,0.55773817,111360.0,111350.0,0.54598989]
[1757260746926,0.55773817,111360.0,111350.0,0.38475145]
[1757260747127,0.55773817,111360.0,111350.0,0.54562806]
[1757260748229,0.55773817,111360.0,111350.0,0.41562806]
[1757260749228,0.36,111360.0,111350.0,0.41562806]
[1757260749431,0.55773817,111360.0,111350.0,0.41562806]
[1757260749930,0.55773817,111360.0,111350.0,0.75562806]
[1757260750230,0.55773817,111360.0,111350.0,0.74562806]
[1757260750528,0.55773817,111360.0,111350.0,0.41562806]
[1757260750731,0.55773817,111360.0,111350.0,1.22830806]
[1757260751431,0.55773817,111360.0,111350.0,1.34830806]
[1757260751630,0.55773817,111360.0,111350.0,1.22830806]
[1757260751930,0.55773817,111360.0,111350.0,1.36830806]
[1757260754533,0.36,111360.0,111350.0,1.36830806]
[1757260754734,0.55773817,111360.0,111350.0,1.36830806]
[1757260755234,0.36,111360.0,111350.0,1.36830806]
[1757260755434,0.55773817,111360.0,111350.0,1.36830806]
[1757260756937,0.55773817,111360.0,111350.0,1.20743145]
[1757260758137,0.55773817,111360.0,111350.0,1.19743145]
[1757260758437,0.55773817,111360.0,111350.0,1.19735145]
[1757260760638,0.55773817,111360.0,111350.0,1.20735145]
[1757260761939,0.36,111360.0,111350.0,0.39475145]
[1757260762138,0.55773817,111360.0,111350.0,1.20731145]
[1757260763438,0.55773817,111360.0,111350.0,1.4170686]
[1757260766543,0.36,111360.0,111350.0,1.4170686]
[1757260766741,0.55773817,111360.0,111350.0,1.4170686]
[1757260768240,0.55773817,111360.0,111350.0,1.2770686]
[1757260768536,0.36,111360.0,111350.0,1.2770686]
[1757260768737,0.55773817,111360.0,111350.0,1.2770686]
[1757260769343,0.55773817,111360.0,111350.0,1.06731145]
[1757260769541,0.23773817,111360.0,111350.0,1.06731145]
[1757260770037,0.23773817,111360.0,111350.0,1.19731145]
[1757260770242,0.04,111360.0,111350.0,1.39731145]
[1757260770442,0.04,111360.0,111350.0,1.406358]
[1757260772044,0.04,111360.0,111350.0,1.61611515]
[1757260772343,0.04,111360.0,111350.0,1.41611515]
[1757260772645,0.04,111360.0,111350.0,1.59611515]
[1757260772945,0.04,111360.0,111350.0,1.42611515]
[1757260773144,0.04,111360.0,111350.0,1.61611515]
[1757260773338,0.04,111360.0,111350.0,1.57962308]
[1757260773539,0.07349048,111370.0,111350.0,2.13490022]
[1757260773737,0.43349048,111370.0,111360.0,0.43104634]
[1757260773946,0.43339048,111370.0,111360.0,0.74104634]
[1757260774242,0.36,111370.0,111360.0,0.99199613]
[1757260774444,0.18,111370.0,111360.0,0.79408739]
[1757260775043,0.18,111370.0,111360.0,0.6329303]
[1757260776439,0.07066933,111380.0,111370.0,0.03557]
[1757260776645,0.41056933,111380.0,111370.0,1.16730545]
[1757260777045,0.41056933,111380.0,111370.0,1.35487305]
[1757260778246,0.34,111380.0,111370.0,1.19381778]
[1757260778444,0.34,111380.0,111370.0,1.44453998]
[1757260778842,0.341,111380.0,111370.0,1.44453998]
[1757260779045,0.341,111380.0,111370.0,1.35475538]
[1757260779247,0.341,111380.0,111370.0,1.40357493]
[1757260779646,0.343,111380.0,111370.0,0.59117493]
[1757260779845,0.343,111380.0,111370.0,1.40353493]
[1757260785054,0.343,111380.0,111370.0,1.19377778]
[1757260785251,0.343,111380.0,111370.0,1.19365778]
[1757260786251,0.343,111380.0,111370.0,1.44365778]
[1757260786453,0.133,111380.0,111370.0,1.44365778]
[1757260786855,0.133,111380.0,111370.0,1.60433476]
[1757260787051,0.133,111380.0,111370.0,0.79209476]
[1757260787252,0.133,111380.0,111370.0,1.60433476]
[1757260789854,0.333,111380.0,111370.0,1.60433476]
[1757260790055,0.333,111380.0,111370.0,0.63141778]
[1757260790252,0.333,111380.0,111370.0,1.4253376]
[1757260790556,0.333,111380.0,111370.0,0.6131376]
[1757260790854,0.333,111380.0,111370.0,1.4252976]
[1757260791259,0.113,111380.0,111370.0,1.4252976]
[1757260792957,0.283,111380.0,111370.0,1.4252976]
[1757260793757,0.283,111380.0,111370.0,0.6131376]
[1757260794055,0.283,111380.0,111370.0,1.4252976]
[1757260799565,0.11323068,111380.0,111370.0,1.63505475]
[1757260799962,0.27121064,111390.0,111370.0,1.63505475]
[1757260800260,0.62405064,111390.0,111380.0,0.19636167]
[1757260800568,0.42638304,111390.0,111380.0,0.32639377]
[1757260801062,0.35284,111390.0,111380.0,0.32639377]
[1757260801358,0.60284,111390.0,111380.0,0.32639377]
[1757260801562,0.60284,111390.0,111380.0,0.16557]
[1757260801770,0.60284,111390.0,111370.0,0.01275]
[1757260802064,0.60294,111390.0,111370.0,0.01275]
[1757260802667,0.60294,111390.0,111380.0,0.02104]
[1757260802866,0.60284,111390.0,111380.0,0.02104]
[1757260803060,0.35284,111390.0,111380.0,0.02104]
[1757260803368,0.60284,111390.0,111370.0,0.05639]
[1757260803568,0.60294,111390.0,111370.0,0.01275]
[1757260803768,0.60394,111390.0,111370.0,0.01275]
[1757260804066,0.60494,111390.0,111370.0,0.01275]
[1757260804270,0.60494,111390.0,111380.0,0.02104]
[1757260804468,0.60484,111390.0,111380.0,0.02104]
[1757260804668,0.35484,111390.0,111380.0,0.02104]
[1757260805068,0.35484,111390.0,111380.0,0.03383]
[1757260805269,0.35384,111390.0,111380.0,0.03383]
[1757260805468,0.35484,111390.0,111380.0,0.03383]
[1757260805767,0.35584,111390.0,111380.0,0.03383]
[1757260807169,0.60584,111390.0,111380.0,0.03383]
[1757260807368,0.35584,111390.0,111380.0,0.03383]
[1757260808765,0.333,111390.0,111380.0,0.49995]
[1757260808970,0.333,111390.0,111380.0,0.82995]
[1757260809170,0.333,111390.0,111380.0,0.49995]
[1757260809370,0.333,111390.0,111380.0,0.84995]
[1757260810067,0.333,111390.0,111380.0,0.5897266]
[1757260810269,0.333,111390.0,111380.0,0.9597266]
[1757260810468,0.003,111390.0,111380.0,0.5897266]
[1757260810667,0.003,111390.0,111380.0,0.9397266]
[1757260811572,0.003,111390.0,111380.0,1.10061368]
[1757260812172,0.003,111390.0,111380.0,0.75061368]
[1757260812567,0.0001,111400.0,111380.0,0.75061368]
[1757260812773,0.3801,111400.0,111390.0,0.03383]
[1757260812974,0.38,111400.0,111390.0,0.03383]
[1757260813173,0.38,111400.0,111390.0,0.19471708]
[1757260813972,0.383,111400.0,111390.0,0.37383]
[1757260814775,0.384,111400.0,111390.0,0.53471708]
[1757260814972,0.384,111400.0,111390.0,0.19471708]
[1757260815475,0.384,111400.0,111390.0,0.40383]
[1757260815677,0.004,111400.0,111390.0,0.40383]
[1757260816579,0.001,111400.0,111390.0,0.39583]
[1757260817077,0.001,111400.0,111390.0,0.03583]
[1757260817380,0.001,111400.0,111390.0,0.50649624]
[1757260818175,0.0001,111410.0,111390.0,0.50749624]
[1757260818478,0.3101,111410.0,111400.0,0.03383]
[1757260818668,0.31,111410.0,111400.0,0.03383]
[1757260820084,0.31,111410.0,111400.0,0.40383]